[Event "Titled Tuesday Blitz March 07 Early 2023"]
[White "Hirneise, Jens"]
[Black "Harriott, Tyrell"]
[WhiteFideId "24614734"]
[BlackFideId "2086484"]
[WhiteElo "2345"]
[BlackElo "2107"]
[Result "1-0"]
[Round "08"]
[TimeControl "180+2"]
[Date "2023.03.07"]
[WhiteClock "0:01:31"]
[BlackClock "0:00:46"]

1. c4 {[%clk 0:02:59]}  e6 {[%clk 0:02:59]} 2. d4 {[%clk 0:02:52]}  d5 {[%clk 0:02:55]} 3. cxd5 {[%clk 0:02:51]}  exd5 {[%clk 0:02:55]} 4. Nc3 {[%clk 0:02:50]}  f5 {[%clk 0:02:54]} 5. g3 {[%clk 0:02:49]}  Nf6 {[%clk 0:02:54]} 6. Bg2 {[%clk 0:02:50]}  c6 {[%clk 0:02:54]} 7. Nf3 {[%clk 0:02:48]}  Bd6 {[%clk 0:02:54]} 8. Ne5 {[%clk 0:02:48]}  O-O {[%clk 0:02:37]} 9. O-O {[%clk 0:02:46]}  Nbd7 {[%clk 0:02:33]} 10. f4 {[%clk 0:02:41]}  Qb6 {[%clk 0:02:28]} 11. Kh1 {[%clk 0:02:40]}  Ne4 {[%clk 0:02:19]} 12. Nxe4 {[%clk 0:02:35]}  fxe4 {[%clk 0:02:17]} 13. e3 {[%clk 0:02:35]}  Nf6 {[%clk 0:02:16]} 14. h3 {[%clk 0:02:32]}  Qc7 {[%clk 0:02:13]} 15. g4 {[%clk 0:02:31]}  Qd8 {[%clk 0:02:11]} 16. Bd2 {[%clk 0:02:30]}  Qe8 {[%clk 0:02:03]} 17. Qe1 {[%clk 0:02:27]}  b6 {[%clk 0:02:03]} 18. Qh4 {[%clk 0:02:26]}  Ba6 {[%clk 0:02:00]} 19. Rg1 {[%clk 0:02:22]}  c5 {[%clk 0:01:55]} 20. Bf1 {[%clk 0:02:19]}  c4 {[%clk 0:01:51]} 21. g5 {[%clk 0:02:15]}  Nd7 {[%clk 0:01:39]} 22. Bc3 {[%clk 0:02:04]}  b5 {[%clk 0:01:36]} 23. a3 {[%clk 0:02:02]}  Bc8 {[%clk 0:01:33]} 24. Be2 {[%clk 0:01:58]}  a5 {[%clk 0:01:27]} 25. Bg4 {[%clk 0:01:48]}  Nb6 {[%clk 0:01:17]} 26. g6 {[%clk 0:01:38]}  h6 {[%clk 0:01:11]} 27. Nf7 {[%clk 0:01:36]}  Be7 {[%clk 0:01:04]} 28. Nxh6+ {[%clk 0:01:32]}  gxh6 {[%clk 0:00:53]} 29. Qxh6 {[%clk 0:01:32]}  Rf6 {[%clk 0:00:46]} 30. Qh7+ {[%clk 0:01:31]} 1-0


[Site "https://www.chess.com"]

[Event "Titled Tuesday Blitz March 07 Early 2023"]
[White "Mouhamad, Joachim"]
[Black "Djokovic, Nebojsa"]
[WhiteFideId "656410"]
[BlackFideId "938300"]
[WhiteElo "2164"]
[BlackElo "2573"]
[Result "1-0"]
[Round "08"]
[TimeControl "180+2"]
[Date "2023.03.07"]
[WhiteClock "0:00:34"]
[BlackClock "0:00:04"]

1. e4 {[%clk 0:03:00]}  e6 {[%clk 0:03:00]} 2. d4 {[%clk 0:02:59]}  d5 {[%clk 0:03:00]} 3. Nc3 {[%clk 0:03:00]}  Nf6 {[%clk 0:03:01]} 4. e5 {[%clk 0:03:00]}  Nfd7 {[%clk 0:03:01]} 5. f4 {[%clk 0:03:01]}  c5 {[%clk 0:03:02]} 6. Nf3 {[%clk 0:03:02]}  Nc6 {[%clk 0:03:03]} 7. Be3 {[%clk 0:03:02]}  cxd4 {[%clk 0:03:03]} 8. Nxd4 {[%clk 0:03:02]}  Qb6 {[%clk 0:03:04]} 9. Qd2 {[%clk 0:03:01]}  Qxb2 {[%clk 0:03:04]} 10. Rb1 {[%clk 0:03:00]}  Qa3 {[%clk 0:03:05]} 11. Ncb5 {[%clk 0:02:48]}  Qxa2 {[%clk 0:03:05]} 12. Rd1 {[%clk 0:02:43]}  Rb8 {[%clk 0:02:51]} 13. Nc7+ {[%clk 0:02:31]}  Kd8 {[%clk 0:02:51]} 14. Ncxe6+ {[%clk 0:02:26]}  fxe6 {[%clk 0:02:51]} 15. Nxe6+ {[%clk 0:02:26]}  Ke8 {[%clk 0:02:26]} 16. Nxf8 {[%clk 0:02:27]}  Rxf8 {[%clk 0:02:22]} 17. Bd3 {[%clk 0:02:28]}  d4 {[%clk 0:02:19]} 18. Bxh7 {[%clk 0:02:19]}  Qa5 {[%clk 0:01:08]} 19. Bg6+ {[%clk 0:02:17]}  Ke7 {[%clk 0:00:57]} 20. Qxa5 {[%clk 0:01:57]}  Nxa5 {[%clk 0:00:58]} 21. Rxd4 {[%clk 0:01:58]}  Nc6 {[%clk 0:00:39]} 22. Rd2 {[%clk 0:01:49]}  b6 {[%clk 0:00:36]} 23. O-O {[%clk 0:01:49]}  Bb7 {[%clk 0:00:32]} 24. Rfd1 {[%clk 0:01:48]}  Rfd8 {[%clk 0:00:20]} 25. Bf2 {[%clk 0:01:47]}  Ndxe5 {[%clk 0:00:11]} 26. Bh4+ {[%clk 0:01:44]}  Kf8 {[%clk 0:00:12]} 27. fxe5 {[%clk 0:01:32]}  Rxd2 {[%clk 0:00:10]} 28. Rxd2 {[%clk 0:01:33]}  Nxe5 {[%clk 0:00:09]} 29. Bg3 {[%clk 0:01:31]}  Nxg6 {[%clk 0:00:02]} 30. Bxb8 {[%clk 0:01:31]}  a5 {[%clk 0:00:03]} 31. Bc7 {[%clk 0:01:26]}  a4 {[%clk 0:00:02]} 32. Bxb6 {[%clk 0:01:21]}  Bc6 {[%clk 0:00:03]} 33. Rd6 {[%clk 0:01:15]}  Be4 {[%clk 0:00:03]} 34. Bc5 {[%clk 0:01:12]}  Kf7 {[%clk 0:00:03]} 35. c4 {[%clk 0:01:08]}  Ne5 {[%clk 0:00:03]} 36. Ra6 {[%clk 0:01:04]}  Bc2 {[%clk 0:00:03]} 37. Ra7+ {[%clk 0:00:55]}  Ke6 {[%clk 0:00:02]} 38. Bd4 {[%clk 0:00:53]}  Nc6 {[%clk 0:00:02]} 39. Ra6 {[%clk 0:00:53]}  Kd6 {[%clk 0:00:02]} 40. Bxg7 {[%clk 0:00:51]}  Kc7 {[%clk 0:00:01]} 41. c5 {[%clk 0:00:48]}  Nb4 {[%clk 0:00:01]} 42. Be5+ {[%clk 0:00:45]}  Kb7 {[%clk 0:00:01]} 43. Rb6+ {[%clk 0:00:45]}  Ka8 {[%clk 0:00:01]} 44. Rxb4 {[%clk 0:00:45]}  a3 {[%clk 0:00:02]} 45. h4 {[%clk 0:00:41]}  a2 {[%clk 0:00:01]} 46. h5 {[%clk 0:00:41]}  Ka7 {[%clk 0:00:02]} 47. Rb6 {[%clk 0:00:41]}  Bb1 {[%clk 0:00:02]} 48. Ba1 {[%clk 0:00:40]}  Ka8 {[%clk 0:00:02]} 49. g4 {[%clk 0:00:40]}  Ka7 {[%clk 0:00:03]} 50. g5 {[%clk 0:00:40]}  Bf5 {[%clk 0:00:03]} 51. g6 {[%clk 0:00:40]}  Bb1 {[%clk 0:00:03]} 52. g7 {[%clk 0:00:40]}  Bh7 {[%clk 0:00:04]} 53. h6 {[%clk 0:00:40]}  Bg8 {[%clk 0:00:04]} 54. Kf2 {[%clk 0:00:39]}  Bh7 {[%clk 0:00:05]} 55. Ke3 {[%clk 0:00:40]}  Bg8 {[%clk 0:00:05]} 56. Kd4 {[%clk 0:00:40]}  Bh7 {[%clk 0:00:06]} 57. Ke5 {[%clk 0:00:40]}  Bg8 {[%clk 0:00:07]} 58. Kd6 {[%clk 0:00:40]}  Bf7 {[%clk 0:00:07]} 59. Kc7 {[%clk 0:00:40]}  Bg8 {[%clk 0:00:08]} 60. Rf6 {[%clk 0:00:36]}  Bb3 {[%clk 0:00:07]} 61. h7 {[%clk 0:00:36]}  Bg8 {[%clk 0:00:06]} 62. h8=Q {[%clk 0:00:35]}  Be6 {[%clk 0:00:03]} 63. Qb8+ {[%clk 0:00:34]}  Ka6 {[%clk 0:00:04]} 64. Qb6# {[%clk 0:00:34]} 1-0


[Site "https://www.chess.com"]

[Event "Titled Tuesday Blitz March 07 Early 2023"]
[White "Koridze, Lile"]
[Black "Moksh Amit Doshi"]
[WhiteFideId "13612514"]
[BlackFideId "25064967"]
[WhiteElo "2047"]
[BlackElo "2297"]
[Result "0-1"]
[Round "08"]
[TimeControl "180+2"]
[Date "2023.03.07"]
[WhiteClock "0:01:44"]
[BlackClock "0:01:08"]

1. d4 {[%clk 0:03:00]}  Nf6 {[%clk 0:02:59]} 2. c4 {[%clk 0:03:01]}  c6 {[%clk 0:02:58]} 3. Nf3 {[%clk 0:02:59]}  d5 {[%clk 0:02:58]} 4. Nc3 {[%clk 0:02:58]}  e6 {[%clk 0:02:59]} 5. e3 {[%clk 0:02:57]}  Nbd7 {[%clk 0:02:59]} 6. Be2 {[%clk 0:02:56]}  Bd6 {[%clk 0:02:58]} 7. O-O {[%clk 0:02:57]}  O-O {[%clk 0:02:57]} 8. b3 {[%clk 0:02:57]}  b6 {[%clk 0:02:57]} 9. Bb2 {[%clk 0:02:57]}  Bb7 {[%clk 0:02:57]} 10. Qc2 {[%clk 0:02:56]}  Qe7 {[%clk 0:02:54]} 11. e4 {[%clk 0:02:55]}  dxe4 {[%clk 0:02:51]} 12. Nxe4 {[%clk 0:02:56]}  Nxe4 {[%clk 0:02:39]} 13. Qxe4 {[%clk 0:02:57]}  Nf6 {[%clk 0:02:40]} 14. Qh4 {[%clk 0:02:53]}  c5 {[%clk 0:02:34]} 15. Rfe1 {[%clk 0:02:51]}  Rfe8 {[%clk 0:02:21]} 16. d5 {[%clk 0:02:34]}  exd5 {[%clk 0:02:14]} 17. Bd3 {[%clk 0:02:33]}  Ne4 {[%clk 0:02:13]} 18. Qg4 {[%clk 0:02:30]}  d4 {[%clk 0:01:32]} 19. Nd2 {[%clk 0:02:10]}  Qg5 {[%clk 0:01:30]} 20. Rxe4 {[%clk 0:02:04]}  Qxd2 {[%clk 0:01:30]} 21. Bxd4 {[%clk 0:01:51]}  cxd4 {[%clk 0:01:25]} 22. Rxd4 {[%clk 0:01:51]}  Qh6 {[%clk 0:01:13]} 23. h4 {[%clk 0:01:44]}  Be5 {[%clk 0:01:08]} 0-1


[Site "https://www.chess.com"]

[Event "Titled Tuesday Blitz March 07 Early 2023"]
[White "Zherebtsova, Alexandra"]
[Black "Borrmann, Laurenz"]
[WhiteFideId "24129518"]
[BlackFideId "312187930"]
[WhiteElo "2055"]
[BlackElo "2312"]
[Result "1-0"]
[Round "08"]
[TimeControl "180+2"]
[Date "2023.03.07"]
[WhiteClock "0:00:18"]
[BlackClock "0:00:01"]

1. d4 {[%clk 0:03:00]}  f5 {[%clk 0:02:56]} 2. Nf3 {[%clk 0:02:54]}  Nf6 {[%clk 0:02:53]} 3. g3 {[%clk 0:02:54]}  e6 {[%clk 0:02:50]} 4. Bg2 {[%clk 0:02:52]}  d5 {[%clk 0:02:50]} 5. b3 {[%clk 0:02:51]}  Be7 {[%clk 0:02:47]} 6. Ba3 {[%clk 0:02:48]}  Bxa3 {[%clk 0:02:40]} 7. Nxa3 {[%clk 0:02:47]}  c5 {[%clk 0:02:39]} 8. O-O {[%clk 0:02:45]}  cxd4 {[%clk 0:02:37]} 9. Nxd4 {[%clk 0:02:40]}  Nc6 {[%clk 0:02:35]} 10. c4 {[%clk 0:02:38]}  e5 {[%clk 0:02:30]} 11. Ndb5 {[%clk 0:02:15]}  d4 {[%clk 0:02:26]} 12. Nc2 {[%clk 0:01:46]}  O-O {[%clk 0:02:19]} 13. f4 {[%clk 0:01:46]}  Qb6 {[%clk 0:01:53]} 14. Kh1 {[%clk 0:01:27]}  Rd8 {[%clk 0:01:06]} 15. fxe5 {[%clk 0:01:22]}  Ne4 {[%clk 0:01:02]} 16. Nd6 {[%clk 0:00:38]}  Nxd6 {[%clk 0:00:39]} 17. exd6 {[%clk 0:00:38]}  Rxd6 {[%clk 0:00:40]} 18. b4 {[%clk 0:00:34]}  Qd8 {[%clk 0:00:18]} 19. Bd5+ {[%clk 0:00:30]}  Rxd5 {[%clk 0:00:18]} 20. cxd5 {[%clk 0:00:30]}  Qxd5+ {[%clk 0:00:19]} 21. Kg1 {[%clk 0:00:28]}  b6 {[%clk 0:00:17]} 22. b5 {[%clk 0:00:26]}  Qxb5 {[%clk 0:00:11]} 23. Nxd4 {[%clk 0:00:26]}  Nxd4 {[%clk 0:00:11]} 24. Qxd4 {[%clk 0:00:25]}  Bb7 {[%clk 0:00:12]} 25. Rac1 {[%clk 0:00:21]}  Qxe2 {[%clk 0:00:08]} 26. Qc4+ {[%clk 0:00:21]}  Qxc4 {[%clk 0:00:08]} 27. Rxc4 {[%clk 0:00:21]}  Bd5 {[%clk 0:00:07]} 28. Rc7 {[%clk 0:00:20]}  Bxa2 {[%clk 0:00:02]} 29. Rxf5 {[%clk 0:00:19]}  Be6 {[%clk 0:00:01]} 30. Re5 {[%clk 0:00:18]}  Bf7 {[%clk 0:00:02]} 31. Ree7 {[%clk 0:00:18]}  Rf8 {[%clk 0:00:02]} 32. Rxa7 {[%clk 0:00:18]}  b5 {[%clk 0:00:01]} 33. Rab7 {[%clk 0:00:18]}  h6 {[%clk 0:00:01]} 34. Rxb5 {[%clk 0:00:18]} 1-0


[Site "https://www.chess.com"]

[Event "Titled Tuesday Blitz March 07 Early 2023"]
[White "Miszler, Levente"]
[Black "Janaszak, Dawid"]
[WhiteFideId "763276"]
[BlackFideId "1119206"]
[WhiteElo "2176"]
[BlackElo "2220"]
[Result "0-1"]
[Round "08"]
[TimeControl "180+2"]
[Date "2023.03.07"]
[WhiteClock "0:00:36"]
[BlackClock "0:00:49"]

1. Nf3 {[%clk 0:03:00]}  c5 {[%clk 0:03:00]} 2. c4 {[%clk 0:02:59]}  Nc6 {[%clk 0:02:59]} 3. Nc3 {[%clk 0:02:58]}  d6 {[%clk 0:02:59]} 4. g3 {[%clk 0:02:55]}  g6 {[%clk 0:02:58]} 5. Bg2 {[%clk 0:02:55]}  Bg7 {[%clk 0:02:58]} 6. O-O {[%clk 0:02:56]}  Nf6 {[%clk 0:02:58]} 7. d3 {[%clk 0:02:55]}  O-O {[%clk 0:02:59]} 8. a3 {[%clk 0:02:56]}  Bg4 {[%clk 0:02:56]} 9. Rb1 {[%clk 0:02:54]}  Qd7 {[%clk 0:02:55]} 10. Re1 {[%clk 0:02:51]}  Bh3 {[%clk 0:02:55]} 11. Bh1 {[%clk 0:02:52]}  a5 {[%clk 0:02:53]} 12. Bd2 {[%clk 0:02:45]}  Nh5 {[%clk 0:02:51]} 13. Qc1 {[%clk 0:02:44]}  Rfe8 {[%clk 0:02:47]} 14. Nd5 {[%clk 0:02:42]}  Rad8 {[%clk 0:02:41]} 15. b4 {[%clk 0:02:40]}  axb4 {[%clk 0:02:38]} 16. axb4 {[%clk 0:02:41]}  cxb4 {[%clk 0:02:39]} 17. Nxb4 {[%clk 0:02:41]}  Nd4 {[%clk 0:02:34]} 18. Bc3 {[%clk 0:02:34]}  e5 {[%clk 0:02:29]} 19. Nd5 {[%clk 0:02:26]}  Rb8 {[%clk 0:02:16]} 20. Rb6 {[%clk 0:02:23]}  Bg4 {[%clk 0:02:07]} 21. Ng5 {[%clk 0:02:19]}  Nxe2+ {[%clk 0:02:02]} 22. Rxe2 {[%clk 0:02:19]}  Bxe2 {[%clk 0:02:03]} 23. Ne4 {[%clk 0:02:12]}  Bxd3 {[%clk 0:01:58]} 24. Rxd6 {[%clk 0:01:53]}  Qf5 {[%clk 0:01:58]} 25. Qe3 {[%clk 0:01:37]}  Bxc4 {[%clk 0:01:47]} 26. Nc7 {[%clk 0:01:20]}  Rec8 {[%clk 0:01:38]} 27. Qc5 {[%clk 0:01:19]}  b5 {[%clk 0:01:30]} 28. Ba5 {[%clk 0:01:05]}  Bf8 {[%clk 0:01:29]} 29. Qa7 {[%clk 0:00:38]}  Bxd6 {[%clk 0:01:23]} 30. Nxd6 {[%clk 0:00:39]}  Qb1+ {[%clk 0:01:24]} 31. Kg2 {[%clk 0:00:39]}  Qf1+ {[%clk 0:01:21]} 32. Kf3 {[%clk 0:00:37]}  Qxh1+ {[%clk 0:01:20]} 33. Ke3 {[%clk 0:00:36]}  Qd1 {[%clk 0:00:49]} 0-1


[Site "https://www.chess.com"]

[Event "Titled Tuesday Blitz March 07 Early 2023"]
[White "Pino Perez, Lazaro"]
[Black "Malyi, Viacheslav"]
[WhiteFideId "3517055"]
[BlackFideId "14123983"]
[WhiteElo "2170"]
[BlackElo "2291"]
[Result "0-1"]
[Round "08"]
[TimeControl "180+2"]
[Date "2023.03.07"]
[WhiteClock "0:00:01"]
[BlackClock "0:01:01"]

1. d4 {[%clk 0:03:00]}  d5 {[%clk 0:02:58]} 2. Bf4 {[%clk 0:02:59]}  Nf6 {[%clk 0:02:59]} 3. e3 {[%clk 0:02:58]}  c5 {[%clk 0:02:59]} 4. Nf3 {[%clk 0:02:58]}  Nc6 {[%clk 0:02:56]} 5. Nbd2 {[%clk 0:02:59]}  Bf5 {[%clk 0:02:54]} 6. dxc5 {[%clk 0:02:57]}  e6 {[%clk 0:02:52]} 7. Nd4 {[%clk 0:02:57]}  Bg6 {[%clk 0:02:45]} 8. Bb5 {[%clk 0:02:43]}  Rc8 {[%clk 0:02:43]} 9. b4 {[%clk 0:02:42]}  Nd7 {[%clk 0:02:40]} 10. Nxc6 {[%clk 0:01:27]}  bxc6 {[%clk 0:02:41]} 11. Ba6 {[%clk 0:01:27]}  e5 {[%clk 0:02:39]} 12. Bxc8 {[%clk 0:01:22]}  Qxc8 {[%clk 0:02:40]} 13. Bg3 {[%clk 0:01:22]}  Qb7 {[%clk 0:02:39]} 14. c3 {[%clk 0:01:16]}  Bd3 {[%clk 0:02:38]} 15. Nf3 {[%clk 0:01:10]}  e4 {[%clk 0:02:36]} 16. Nd4 {[%clk 0:01:06]}  Be7 {[%clk 0:02:35]} 17. Nf5 {[%clk 0:00:58]}  Nf6 {[%clk 0:02:20]} 18. Nxg7+ {[%clk 0:00:51]}  Kf8 {[%clk 0:02:20]} 19. Nf5 {[%clk 0:00:50]}  Rg8 {[%clk 0:02:19]} 20. Qa4 {[%clk 0:00:35]}  Rg5 {[%clk 0:01:57]} 21. Nd4 {[%clk 0:00:26]}  Qd7 {[%clk 0:01:21]} 22. Qxc6 {[%clk 0:00:25]}  Qg4 {[%clk 0:01:21]} 23. h3 {[%clk 0:00:13]}  Qh5 {[%clk 0:01:21]} 24. Qc8+ {[%clk 0:00:12]}  Kg7 {[%clk 0:01:19]} 25. Bf4 {[%clk 0:00:11]}  Rxg2 {[%clk 0:01:15]} 26. Nf5+ {[%clk 0:00:06]}  Kg6 {[%clk 0:01:14]} 27. Nxe7+ {[%clk 0:00:06]}  Kg7 {[%clk 0:01:14]} 28. Nf5+ {[%clk 0:00:06]}  Kg6 {[%clk 0:01:15]} 29. Nd4 {[%clk 0:00:06]}  h6 {[%clk 0:01:05]} 30. Qf5+ {[%clk 0:00:06]}  Qxf5 {[%clk 0:01:04]} 31. Nxf5 {[%clk 0:00:07]}  Kxf5 {[%clk 0:01:05]} 32. Rd1 {[%clk 0:00:04]}  Bc4 {[%clk 0:01:04]} 33. a4 {[%clk 0:00:03]}  Rg8 {[%clk 0:01:05]} 34. Rb1 {[%clk 0:00:03]}  Bd3 {[%clk 0:01:03]} 35. Rb2 {[%clk 0:00:02]}  Bc4 {[%clk 0:01:04]} 36. b5 {[%clk 0:00:01]}  Rc8 {[%clk 0:01:03]} 37. c6 {[%clk 0:00:01]}  Nd7 {[%clk 0:01:01]} 0-1


[Site "https://www.chess.com"]

[Event "Titled Tuesday Blitz March 07 Early 2023"]
[White "Zhukova, Natalia"]
[Black "Kopczynski, Michal"]
[WhiteFideId "14101513"]
[BlackFideId "1124200"]
[WhiteElo "2297"]
[BlackElo "2212"]
[Result "1-0"]
[Round "08"]
[TimeControl "180+2"]
[Date "2023.03.07"]
[WhiteClock "0:00:52"]
[BlackClock "0:00:30"]

1. c4 {[%clk 0:02:56]}  d6 {[%clk 0:02:59]} 2. Nc3 {[%clk 0:02:55]}  e5 {[%clk 0:02:59]} 3. Nf3 {[%clk 0:02:54]}  f5 {[%clk 0:02:59]} 4. d4 {[%clk 0:02:53]}  e4 {[%clk 0:02:59]} 5. Ng5 {[%clk 0:02:54]}  Nf6 {[%clk 0:03:00]} 6. g3 {[%clk 0:02:52]}  g6 {[%clk 0:03:00]} 7. Bg2 {[%clk 0:02:52]}  Bg7 {[%clk 0:03:01]} 8. O-O {[%clk 0:02:53]}  O-O {[%clk 0:03:01]} 9. f3 {[%clk 0:02:52]}  h6 {[%clk 0:03:02]} 10. Nh3 {[%clk 0:02:51]}  exf3 {[%clk 0:03:02]} 11. exf3 {[%clk 0:02:49]}  Nc6 {[%clk 0:03:03]} 12. Be3 {[%clk 0:02:42]}  Kh7 {[%clk 0:02:59]} 13. Nf4 {[%clk 0:02:37]}  g5 {[%clk 0:02:54]} 14. Nfd5 {[%clk 0:02:36]}  Nxd5 {[%clk 0:02:47]} 15. Nxd5 {[%clk 0:02:37]}  Be6 {[%clk 0:02:46]} 16. f4 {[%clk 0:02:37]}  g4 {[%clk 0:02:40]} 17. Qd2 {[%clk 0:02:19]}  h5 {[%clk 0:02:33]} 18. h4 {[%clk 0:02:16]}  gxh3 {[%clk 0:02:27]} 19. Bxh3 {[%clk 0:02:16]}  Bxd5 {[%clk 0:02:27]} 20. cxd5 {[%clk 0:02:15]}  Ne7 {[%clk 0:02:27]} 21. Qe2 {[%clk 0:02:00]}  Qe8 {[%clk 0:02:27]} 22. Qf3 {[%clk 0:02:00]}  Qg6 {[%clk 0:02:21]} 23. Rac1 {[%clk 0:01:47]}  Rac8 {[%clk 0:02:19]} 24. Rc2 {[%clk 0:01:47]}  c6 {[%clk 0:02:09]} 25. dxc6 {[%clk 0:01:36]}  Rxc6 {[%clk 0:02:04]} 26. Rh2 {[%clk 0:01:31]}  Kg8 {[%clk 0:01:38]} 27. Bg2 {[%clk 0:01:25]}  Rc2 {[%clk 0:01:23]} 28. Bf2 {[%clk 0:01:01]}  Qg4 {[%clk 0:01:00]} 29. Qb3+ {[%clk 0:00:59]}  Kh7 {[%clk 0:00:54]} 30. Qxc2 {[%clk 0:00:59]}  Rc8 {[%clk 0:00:53]} 31. Qd1 {[%clk 0:00:57]}  Qxd1 {[%clk 0:00:50]} 32. Rxd1 {[%clk 0:00:58]}  Kg6 {[%clk 0:00:51]} 33. Bxb7 {[%clk 0:00:55]}  Rb8 {[%clk 0:00:51]} 34. Bf3 {[%clk 0:00:55]}  Rxb2 {[%clk 0:00:50]} 35. Bxh5+ {[%clk 0:00:55]}  Kf6 {[%clk 0:00:50]} 36. d5 {[%clk 0:00:53]}  Rxa2 {[%clk 0:00:30]} 37. Bd4# {[%clk 0:00:52]} 1-0


[Site "https://www.chess.com"]

[Event "Titled Tuesday Blitz March 07 Early 2023"]
[White "Kozin, Yuri"]
[Black "sissahungrychess"]
[WhiteFideId "4129920"]
[WhiteElo "2507"]
[BlackElo "2402"]
[Result "1-0"]
[Round "08"]
[TimeControl "180+2"]
[Date "2023.03.07"]
[WhiteClock "0:00:06"]
[BlackClock "0:00:03"]

1. e4 {[%clk 0:03:00]}  c5 {[%clk 0:02:59]} 2. Nf3 {[%clk 0:02:59]}  d6 {[%clk 0:03:00]} 3. d4 {[%clk 0:02:58]}  cxd4 {[%clk 0:03:01]} 4. Nxd4 {[%clk 0:02:59]}  Nf6 {[%clk 0:03:01]} 5. Nc3 {[%clk 0:02:59]}  a6 {[%clk 0:03:01]} 6. Be3 {[%clk 0:03:00]}  e5 {[%clk 0:03:02]} 7. Nf3 {[%clk 0:03:00]}  Be7 {[%clk 0:03:02]} 8. Bc4 {[%clk 0:03:01]}  O-O {[%clk 0:03:01]} 9. O-O {[%clk 0:03:01]}  Bg4 {[%clk 0:02:55]} 10. h3 {[%clk 0:02:58]}  Bh5 {[%clk 0:02:38]} 11. a4 {[%clk 0:02:51]}  Nc6 {[%clk 0:02:38]} 12. Nd5 {[%clk 0:02:46]}  Nxe4 {[%clk 0:02:17]} 13. Bb6 {[%clk 0:02:44]}  Qd7 {[%clk 0:02:17]} 14. Bb3 {[%clk 0:02:11]}  Bg6 {[%clk 0:01:25]} 15. Re1 {[%clk 0:01:55]}  Bd8 {[%clk 0:01:18]} 16. a5 {[%clk 0:01:44]}  Nf6 {[%clk 0:01:14]} 17. Ba4 {[%clk 0:01:31]}  Nxd5 {[%clk 0:00:58]} 18. Qxd5 {[%clk 0:01:23]}  Bxb6 {[%clk 0:00:49]} 19. axb6 {[%clk 0:01:17]}  Qd8 {[%clk 0:00:44]} 20. Bxc6 {[%clk 0:01:09]}  bxc6 {[%clk 0:00:44]} 21. Qxc6 {[%clk 0:01:10]}  Rc8 {[%clk 0:00:41]} 22. Qb7 {[%clk 0:01:03]}  Rb8 {[%clk 0:00:41]} 23. Qxa6 {[%clk 0:00:57]}  Rxb6 {[%clk 0:00:41]} 24. Qa3 {[%clk 0:00:46]}  Bxc2 {[%clk 0:00:31]} 25. Rac1 {[%clk 0:00:45]}  Bb3 {[%clk 0:00:25]} 26. Re3 {[%clk 0:00:40]}  Be6 {[%clk 0:00:24]} 27. Rd1 {[%clk 0:00:38]}  Qb8 {[%clk 0:00:22]} 28. Red3 {[%clk 0:00:35]}  e4 {[%clk 0:00:20]} 29. Rxd6 {[%clk 0:00:32]}  Rxd6 {[%clk 0:00:18]} 30. Rxd6 {[%clk 0:00:32]}  exf3 {[%clk 0:00:01]} 31. g3 {[%clk 0:00:23]}  Qb7 {[%clk 0:00:01]} 32. Rd3 {[%clk 0:00:18]}  Rb8 {[%clk 0:00:02]} 33. b3 {[%clk 0:00:16]}  Bxh3 {[%clk 0:00:02]} 34. Rxf3 {[%clk 0:00:15]}  Be6 {[%clk 0:00:03]} 35. Re3 {[%clk 0:00:16]}  Qd5 {[%clk 0:00:03]} 36. Qa7 {[%clk 0:00:14]}  Rc8 {[%clk 0:00:03]} 37. Re1 {[%clk 0:00:13]}  Qd2 {[%clk 0:00:03]} 38. Qa1 {[%clk 0:00:12]}  Qh6 {[%clk 0:00:04]} 39. Rd1 {[%clk 0:00:10]}  Bxb3 {[%clk 0:00:03]} 40. Qc3 {[%clk 0:00:06]} 1-0


[Site "https://www.chess.com"]

[Event "Titled Tuesday Blitz March 07 Early 2023"]
[White "Degenbaev, Aziz"]
[Black "Andrews, Todd"]
[WhiteFideId "13802640"]
[BlackFideId "2012456"]
[WhiteElo "2152"]
[BlackElo "2394"]
[Result "1-0"]
[Round "08"]
[TimeControl "180+2"]
[Date "2023.03.07"]
[WhiteClock "0:00:15"]
[BlackClock "0:00:11"]

1. e4 {[%clk 0:02:53]}  e6 {[%clk 0:02:58]} 2. d4 {[%clk 0:02:44]}  d5 {[%clk 0:02:58]} 3. Nc3 {[%clk 0:02:45]}  Bb4 {[%clk 0:02:58]} 4. e5 {[%clk 0:02:46]}  c5 {[%clk 0:02:55]} 5. a3 {[%clk 0:02:46]}  Bxc3+ {[%clk 0:02:55]} 6. bxc3 {[%clk 0:02:47]}  Qc7 {[%clk 0:02:55]} 7. Nf3 {[%clk 0:02:46]}  Bd7 {[%clk 0:02:53]} 8. a4 {[%clk 0:02:45]}  Ne7 {[%clk 0:02:50]} 9. Bd3 {[%clk 0:02:40]}  h6 {[%clk 0:02:45]} 10. O-O {[%clk 0:02:39]}  Nbc6 {[%clk 0:02:43]} 11. Ba3 {[%clk 0:02:37]}  cxd4 {[%clk 0:02:38]} 12. cxd4 {[%clk 0:02:36]}  O-O {[%clk 0:02:38]} 13. Qd2 {[%clk 0:02:22]}  Rfc8 {[%clk 0:02:30]} 14. Bd6 {[%clk 0:02:15]}  Qd8 {[%clk 0:02:29]} 15. Qf4 {[%clk 0:02:13]}  Nf5 {[%clk 0:01:49]} 16. Rfb1 {[%clk 0:01:33]}  Nxd6 {[%clk 0:01:39]} 17. exd6 {[%clk 0:01:32]}  Na5 {[%clk 0:01:40]} 18. Ne5 {[%clk 0:01:27]}  f6 {[%clk 0:01:39]} 19. Ng6 {[%clk 0:01:24]}  Rc3 {[%clk 0:01:14]} 20. Ne7+ {[%clk 0:01:13]}  Kf8 {[%clk 0:01:13]} 21. Qg4 {[%clk 0:00:49]}  b6 {[%clk 0:00:35]} 22. Qg6 {[%clk 0:00:41]}  Be8 {[%clk 0:00:35]} 23. Qh7 {[%clk 0:00:40]}  Qxd6 {[%clk 0:00:34]} 24. Ng6+ {[%clk 0:00:35]}  Bxg6 {[%clk 0:00:33]} 25. Bxg6 {[%clk 0:00:33]}  Rac8 {[%clk 0:00:27]} 26. Re1 {[%clk 0:00:27]}  Ke7 {[%clk 0:00:18]} 27. Qxg7+ {[%clk 0:00:27]}  Kd8 {[%clk 0:00:18]} 28. Qxf6+ {[%clk 0:00:26]}  Kc7 {[%clk 0:00:18]} 29. Rxe6 {[%clk 0:00:26]}  Qf8 {[%clk 0:00:16]} 30. Qe5+ {[%clk 0:00:15]}  Kb7 {[%clk 0:00:15]} 31. Qxd5+ {[%clk 0:00:15]}  Kb8 {[%clk 0:00:11]} 32. Qe5+ {[%clk 0:00:15]}  R8c7 {[%clk 0:00:11]} 33. Re8+ {[%clk 0:00:14]}  Qxe8 {[%clk 0:00:11]} 34. Qxe8+ {[%clk 0:00:14]}  Kb7 {[%clk 0:00:12]} 35. Be4+ {[%clk 0:00:14]}  Ka6 {[%clk 0:00:11]} 36. Qb5# {[%clk 0:00:15]} 1-0


[Site "https://www.chess.com"]